fUSD/lending_fUSD_20260507
["ID","MTS","AMOUNT","RATE_DAILY","PERIOD"]
[421771977,1778129447000,-537.692838,0.00027397,2]
[421771984,1778129447000,-537.692838,0.00027397,2]
[421771982,1778129447000,-537.692838,0.00027397,2]
[421771989,1778129447000,-537.692838,0.00027397,2]
[421771992,1778129447000,-537.692838,0.00027397,2]
[421772002,1778129447000,-537.692838,0.00027397,2]
[421772004,1778129447000,-537.692838,0.00027397,2]
[421772006,1778129447000,-537.692838,0.00027397,2]
[421772007,1778129447000,-537.692838,0.00027397,2]
[421772009,1778129447000,-537.692838,0.00027397,2]
[421772008,1778129447000,-537.692838,0.00027397,2]
[421772011,1778129447000,-537.692838,0.00027397,2]
[421772010,1778129447000,-537.692838,0.00027397,2]
[421772012,1778129447000,-1877.663563,0.00027397,2]
[421772014,1778129447000,-1877.663563,0.00027397,2]
[421771915,1778129447000,-350.0,0.00026907,2]
[421772013,1778129447000,-1877.663563,0.00027397,2]
[421771968,1778129447000,-537.692838,0.00027397,2]
[421771973,1778129447000,-537.692838,0.00027397,2]
[421772005,1778129447000,-537.692838,0.00027397,2]
[421771962,1778129447000,-327.37,0.00027397,2]
[421771921,1778129447000,-786.14,0.00026964,30]
[421771917,1778129447000,-350.0,0.00026907,2]
[421771971,1778129447000,-537.692838,0.00027397,2]
[421771919,1778129447000,-178.0,0.00026907,2]
[421771923,1778129447000,-782.58,0.00026964,30]
[421771926,1778129447000,-1692.612679,0.00027,2]
[421771930,1778129447000,-10613.8969841,0.00027044,2]
[421771933,1778129447000,-151.17418194,0.00027123,20]
[421771940,1778129447000,-789.0,0.00027123,2]
[421771935,1778129447000,-1704.0,0.00027123,2]
[421771928,1778129447000,-1260.2511688,0.00027024,2]
[421771942,1778129447000,-369.716634,0.00027123,2]
[421771944,1778129447000,-199.0,0.00027123,2]
[421771951,1778129447000,-564.0,0.00027285,2]
[421771949,1778129447000,-782.58,0.00027253,2]
[421771946,1778129447000,-786.14,0.00027253,2]
[421771954,1778129447000,-225.85034538,0.000273,30]
[421771937,1778129447000,-903.283366,0.00027123,2]
[421771959,1778129447000,-1500.0,0.00027397,2]
[421771964,1778129447000,-1016.15,0.00027397,2]
[421771956,1778129447000,-225.85034537,0.000273,30]
[421772046,1778129448000,-257.498151,0.00027397,2]
[421772053,1778129448000,-791.638312,0.00027397,2]
[421772057,1778129448000,-791.638312,0.00027397,2]
[421772056,1778129448000,-791.638312,0.00027397,2]
[421772055,1778129448000,-791.638312,0.00027397,2]
[421772051,1778129448000,-791.638312,0.00027397,2]
[421772052,1778129448000,-791.638312,0.00027397,2]
[421772049,1778129448000,-791.638312,0.00027397,2]
[421772048,1778129448000,-791.638312,0.00027397,2]
[421772050,1778129448000,-791.638312,0.00027397,2]
[421772059,1778129448000,-1000.0,0.00027397,20]
[421772054,1778129448000,-791.638312,0.00027397,2]
[421772058,1778129448000,-791.638322,0.00027397,2]
[421772070,1778129448000,-883.101418,0.00027397,2]
[421772063,1778129448000,-883.101418,0.00027397,2]
[421772062,1778129448000,-883.101418,0.00027397,2]
[421772064,1778129448000,-883.101418,0.00027397,2]
[421772061,1778129448000,-883.101418,0.00027397,2]
[421772067,1778129448000,-883.101418,0.00027397,2]
[421772065,1778129448000,-883.101418,0.00027397,2]
[421772066,1778129448000,-883.101418,0.00027397,2]
[421772068,1778129448000,-883.101418,0.00027397,2]
[421772069,1778129448000,-883.101418,0.00027397,2]
[421772071,1778129448000,-883.101418,0.00027397,2]
[421772072,1778129448000,-883.101418,0.00027397,2]
[421772074,1778129448000,-28372.72,0.00027397,10]
[421772047,1778129448000,-791.638312,0.00027397,2]
[421772060,1778129448000,-16569.36,0.00027397,10]
[421772043,1778129448000,-791.638312,0.00027397,2]
[421772023,1778129448000,-1877.663563,0.00027397,2]
[421772045,1778129448000,-791.638312,0.00027397,2]
[421772073,1778129448000,-883.101418,0.00027397,2]
[421772015,1778129448000,-1877.663563,0.00027397,2]
[421772016,1778129448000,-1877.663563,0.00027397,2]
[421772018,1778129448000,-1877.663563,0.00027397,2]
[421772020,1778129448000,-1877.663563,0.00027397,2]
[421772019,1778129448000,-1877.663563,0.00027397,2]
[421772021,1778129448000,-1877.663563,0.00027397,2]
[421772017,1778129448000,-1877.663563,0.00027397,2]
[421772025,1778129448000,-1877.663563,0.00027397,2]
[421772022,1778129448000,-1877.663563,0.00027397,2]
[421772027,1778129448000,-1877.663563,0.00027397,2]
[421772024,1778129448000,-1877.663563,0.00027397,2]
[421772026,1778129448000,-1877.663563,0.00027397,2]
[421772042,1778129448000,-151.0,0.00027397,2]
[421772029,1778129448000,-1877.663563,0.00027397,2]
[421772030,1778129448000,-1877.663563,0.00027397,2]
[421772031,1778129448000,-1877.663555,0.00027397,2]
[421772033,1778129448000,-151.0,0.00027397,2]
[421772032,1778129448000,-791.638312,0.00027397,2]
[421772035,1778129448000,-791.638312,0.00027397,2]
[421772034,1778129448000,-791.638312,0.00027397,2]
[421772036,1778129448000,-151.0,0.00027397,2]
[421772040,1778129448000,-151.0,0.00027397,2]
[421772038,1778129448000,-151.0,0.00027397,2]
[421772039,1778129448000,-791.638312,0.00027397,2]
[421772037,1778129448000,-791.638312,0.00027397,2]
[421772041,1778129448000,-791.638312,0.00027397,2]
[421772044,1778129448000,-151.0,0.00027397,2]
[421772028,1778129448000,-1877.663563,0.00027397,2]
[421772077,1778129448000,-883.101418,0.00027397,2]
[421772116,1778129448000,-165.05,0.00028,2]
[421772075,1778129448000,-883.101418,0.00027397,2]
[421772110,1778129448000,-160.0,0.00028,10]
[421772112,1778129448000,-600.0,0.00028,2]
[421772111,1778129448000,-160.0,0.00028,7]
[421772115,1778129448000,-165.05,0.00028,2]
[421772113,1778129448000,-214.63993676,0.00028,10]
[421772114,1778129448000,-165.05,0.00028,2]
[421772117,1778129448000,-165.05,0.00028,2]
[421772118,1778129448000,-165.05,0.00028,2]
[421772120,1778129448000,-165.05,0.00028,2]
[421772119,1778129448000,-165.05,0.00028,2]
[421772121,1778129448000,-165.05,0.00028,2]
[421772122,1778129448000,-165.05,0.00028,2]
[421772123,1778129448000,-786.14,0.00028118,2]
[421772125,1778129448000,-789.6,0.00028267,2]
[421772126,1778129448000,-4224.8308087,0.0002835,2]
[421772128,1778129448000,-350.0,0.00028493,5]
[421772129,1778129448000,-524.09,0.0002863,2]
[421772127,1778129448000,-4298.23418777,0.0002838,2]
[421772131,1778129448000,-524.09,0.00028661,7]
[421772130,1778129448000,-521.72,0.0002863,2]
[421772133,1778129448000,-1008.96194888,0.00028681,2]
[421772132,1778129448000,-521.72,0.00028661,7]
[421772134,1778129448000,-524.09,0.00028693,30]
[421772136,1778129448000,-524.09,0.00028725,2]
[421772135,1778129448000,-521.72,0.00028693,30]
[421772137,1778129448000,-521.72,0.00028725,2]
[421772076,1778129448000,-883.101418,0.00027397,2]
[421772107,1778129448000,-250.0,0.00027945,5]
[421772109,1778129448000,-214.63993676,0.00028,7]
[421772124,1778129448000,-782.58,0.00028118,2]
[421772108,1778129448000,-17911.9450999,0.00027958,2]
[421772079,1778129448000,-883.101418,0.00027397,2]
[421772105,1778129448000,-786.14,0.0002783,30]
[421772078,1778129448000,-883.101418,0.00027397,2]
[421772081,1778129448000,-883.101428,0.00027397,2]
[421772082,1778129448000,-23643.94,0.00027397,10]
[421772080,1778129448000,-883.101418,0.00027397,2]
[421772083,1778129448000,-19703.28,0.00027397,10]
[421772085,1778129448000,-150.0,0.00027397,5]
[421772084,1778129448000,-500.0,0.00027397,5]
[421772088,1778129448000,-152.0,0.00027518,3]
[421772087,1778129448000,-54092.61,0.000274,7]
[421772090,1778129448000,-782.58,0.00027541,7]
[421772089,1778129448000,-786.14,0.00027541,7]
[421772092,1778129448000,-150.0,0.00027625,2]
[421772086,1778129448000,-1391.22,0.000274,7]
[421772100,1778129448000,-223.0,0.00027757,2]
[421772106,1778129448000,-782.58,0.0002783,30]
[421772091,1778129448000,-150.0,0.00027625,2]
[421772104,1778129448000,-220.0,0.00027812,2]
[421772103,1778129448000,-150.0,0.00027812,2]
[421772102,1778129448000,-280.0,0.00027812,2]
[421772098,1778129448000,-150.0,0.00027757,2]
[421772101,1778129448000,-500.0,0.000278,7]
[421772097,1778129448000,-150.0,0.00027757,2]
[421772095,1778129448000,-709.38220763,0.00027655,2]
[421772096,1778129448000,-150.0,0.00027757,2]
[421772094,1778129448000,-181.0,0.00027625,2]
[421772093,1778129448000,-150.0,0.00027625,2]
[421772099,1778129448000,-150.0,0.00027757,2]
[421772177,1778129449000,-1222.0,0.00029014,2]
[421772186,1778129449000,-521.72,0.00029074,30]
[421772182,1778129449000,-524.09,0.00029042,7]
[421772184,1778129449000,-554.99562574,0.00029068,2]
[421772181,1778129449000,-157.15662956,0.00029041,5]
[421772178,1778129449000,-612.618,0.00029014,2]
[421772172,1778129449000,-521.72,0.0002901,2]
[421772176,1778129449000,-1268.0,0.00029014,2]
[421772179,1778129449000,-6044.0,0.00029014,2]
[421772174,1778129449000,-3537.0,0.00029014,2]
[421772180,1778129449000,-554.99562574,0.00029023,2]
[421772183,1778129449000,-521.72,0.00029042,7]
[421772175,1778129449000,-150.0,0.00029014,2]
[421772185,1778129449000,-524.09,0.00029074,30]
[421772201,1778129449000,-632.0203064,0.00029288,2]
[421772189,1778129449000,-554.99562574,0.00029106,2]
[421772188,1778129449000,-521.72,0.00029105,2]
[421772191,1778129449000,-524.09,0.00029137,7]
[421772190,1778129449000,-200.0,0.0002913,7]
[421772192,1778129449000,-521.72,0.00029137,7]
[421772193,1778129449000,-524.09,0.00029169,30]
[421772194,1778129449000,-521.72,0.00029169,30]
[421772197,1778129449000,-554.99562574,0.0002922,2]
[421772195,1778129449000,-524.09,0.00029201,2]
[421772196,1778129449000,-521.72,0.00029201,2]
[421772198,1778129449000,-524.27,0.00029232,7]
[421772199,1778129449000,-521.75,0.00029232,7]
[421772169,1778129449000,-214.63993676,0.00029,7]
[421772187,1778129449000,-524.09,0.00029105,2]
[421772171,1778129449000,-524.09,0.0002901,2]
[421772140,1778129449000,-521.72,0.00028756,7]
[421772170,1778129449000,-2203.14183133,0.00029,4]
[421772138,1778129449000,-601.09827335,0.0002875,2]
[421772139,1778129449000,-524.09,0.00028756,7]
[421772141,1778129449000,-1000.0,0.00028767,5]
[421772143,1778129449000,-521.72,0.00028788,30]
[421772142,1778129449000,-524.09,0.00028788,30]
[421772145,1778129449000,-214.63993676,0.000288,7]
[421772144,1778129449000,-54092.61,0.000288,7]
[421772146,1778129449000,-554.99562574,0.00028817,2]
[421772148,1778129449000,-521.72,0.0002882,2]
[421772204,1778129449000,-300.0,0.00029293,2]
[421772150,1778129449000,-524.09,0.00028852,7]
[421772153,1778129449000,-524.09,0.00028883,30]
[421772149,1778129449000,-1008.96194888,0.00028826,2]
[421772152,1778129449000,-554.99562574,0.0002887,2]
[421772151,1778129449000,-521.72,0.00028852,7]
[421772154,1778129449000,-521.72,0.00028883,30]
[421772156,1778129449000,-1489.0,0.00028904,2]
[421772157,1778129449000,-524.09,0.00028915,2]
[421772155,1778129449000,-200.0,0.000289,10]
[421772158,1778129449000,-521.72,0.00028915,2]
[421772161,1778129449000,-521.72,0.00028947,7]
[421772160,1778129449000,-524.09,0.00028947,7]
[421772162,1778129449000,-152.0,0.00028955,4]
[421772163,1778129449000,-435.9902627,0.00028961,2]
[421772164,1778129449000,-380.0,0.00028961,2]
[421772165,1778129449000,-524.09,0.00028979,30]
[421772166,1778129449000,-521.72,0.00028979,30]
[421772168,1778129449000,-1391.22,0.00029,7]
[421772167,1778129449000,-150.0,0.00028994,2]
[421772173,1778129449000,-925.0,0.00029014,2]
[421772203,1778129449000,-300.0,0.00029293,2]
[421772147,1778129449000,-524.09,0.0002882,2]
[421772205,1778129449000,-300.0,0.00029293,2]
[421772239,1778129449000,-300.0,0.00029589,2]
[421772240,1778129449000,-300.0,0.00029589,2]
[421772241,1778129449000,-222.0,0.00029589,2]
[421772243,1778129449000,-54092.61,0.000296,7]
[421772242,1778129449000,-150.0,0.00029589,2]
[421772246,1778129449000,-632.0203064,0.00029671,2]
[421772245,1778129449000,-879.2857425,0.00029631,2]
[421772244,1778129449000,-786.37703672,0.000296,2]
[421772250,1778129449000,-574.97847979,0.00029721,2]
[421772249,1778129449000,-216.0,0.00029719,2]
[421772248,1778129449000,-150.0,0.00029719,2]
[421772247,1778129449000,-310.0,0.00029702,14]
[421772251,1778129449000,-202.80725,0.0002973,20]
[421772252,1778129449000,-555.7771821,0.00029787,2]
[421772238,1778129449000,-300.0,0.00029589,2]
[421772254,1778129449000,-23076.99709854,0.000299,2]
[421772258,1778129449000,-650.0,0.0003,2]
[421772257,1778129449000,-1900.0,0.0003,2]
[421772255,1778129449000,-76305.75024765,0.0003,2]
[421772260,1778129449000,-200.0,0.0003,2]
[421772259,1778129449000,-167.0,0.0003,14]
[421772253,1778129449000,-879.2857425,0.00029819,2]
[421772261,1778129449000,-157253.70342226,0.0003,2]
[421772263,1778129449000,-157.0,0.00030036,2]
[421772264,1778129449000,-150.0,0.00030038,2]
[421772265,1778129449000,-226.0,0.00030038,2]
[421772262,1778129449000,-214.63993676,0.0003,30]
[421772266,1778129449000,-281.2000451,0.00030053,2]
[421772267,1778129449000,-2368.2805338,0.00030076,2]
[421772202,1778129449000,-300.0,0.00029293,2]
[421772256,1778129449000,-160.0,0.0003,30]
[421772236,1778129449000,-300.0,0.00029589,2]
[421772159,1778129449000,-554.99562574,0.00028932,2]
[421772235,1778129449000,-300.0,0.00029589,2]
[421772206,1778129449000,-300.0,0.00029293,2]
[421772208,1778129449000,-300.0,0.00029293,2]
[421772210,1778129449000,-168.0,0.00029293,2]
[421772207,1778129449000,-300.0,0.00029293,2]
[421772209,1778129449000,-300.0,0.00029293,2]
[421772212,1778129449000,-150.0,0.00029308,2]
[421772214,1778129449000,-150.0,0.00029308,2]
[421772216,1778129449000,-574.97847979,0.00029318,2]
[421772217,1778129449000,-150.0,0.00029322,2]
[421772215,1778129449000,-185.0,0.00029308,2]
[421772213,1778129449000,-150.0,0.00029308,2]
[421772211,1778129449000,-150.0,0.00029308,2]
[421772218,1778129449000,-200.0,0.0002933,7]
[421772219,1778129449000,-574.97847979,0.00029361,2]
[421772220,1778129449000,-176.0,0.00029433,2]
[421772200,1778129449000,-632.0203064,0.00029246,2]
[421772222,1778129449000,-162.0,0.00029468,2]
[421772221,1778129449000,-574.97847979,0.00029436,2]
[421772233,1778129449000,-300.0,0.00029589,2]
[421772232,1778129449000,-150.0,0.00029534,2]
[421772226,1778129449000,-300.0,0.00029484,2]
[421772231,1778129449000,-200.0,0.0002953,7]
[421772230,1778129449000,-447.0,0.00029484,2]
[421772234,1778129449000,-300.0,0.00029589,2]
[421772229,1778129449000,-300.0,0.00029484,2]
[421772237,1778129449000,-300.0,0.00029589,2]
[421772227,1778129449000,-300.0,0.00029484,2]
[421772225,1778129449000,-300.0,0.00029484,2]
[421772223,1778129449000,-300.0,0.00029484,2]
[421772224,1778129449000,-300.0,0.00029484,2]
[421772228,1778129449000,-300.0,0.00029484,2]
[421772310,1778129450000,-879.2857425,0.0003132,2]
[421772309,1778129450000,-1240.86664976,0.00031297,2]
[421772306,1778129450000,-365.0,0.00031272,30]
[421772307,1778129450000,-158.0,0.00031272,30]
[421772303,1778129450000,-858.0,0.00031272,30]
[421772300,1778129450000,-155.0,0.00031271,30]
[421772302,1778129450000,-257.0,0.00031271,30]
[421772305,1778129450000,-154.0,0.00031272,30]
[421772298,1778129450000,-650.36913422,0.000311,2]
[421772301,1778129450000,-228.0,0.00031271,30]
[421772314,1778129450000,-2011.1542,0.00031586,2]
[421772304,1778129450000,-215.0,0.00031272,30]
[421772313,1778129450000,-2000.0,0.00031507,30]
[421772321,1778129450000,-1537.50974704,0.00032,120]
[421772311,1778129450000,-879.2857425,0.00031363,2]
[421772317,1778129450000,-586.06383103,0.000319,2]
[421772319,1778129450000,-586.06383102,0.000319,2]
[421772322,1778129450000,-997.89473113,0.00032,120]
[421772315,1778129450000,-167.0,0.00031644,14]
[421772318,1778129450000,-586.06383102,0.000319,2]
[421772299,1778129450000,-302.0,0.0003126,30]
[421772316,1778129450000,-152.0,0.00031829,6]
[421772320,1778129450000,-451.74648581,0.00032,120]
[421772323,1778129450000,-1798.75430746,0.00032,120]
[421772327,1778129450000,-206.28608889,0.00032,120]
[421772325,1778129450000,-189.49890456,0.00032,120]
[421772324,1778129450000,-188.61406624,0.00032,120]
[421772312,1778129450000,-1000.0,0.000315,7]
[421772297,1778129450000,-54092.61,0.000311,7]
[421772290,1778129450000,-155.0,0.00030598,2]
[421772293,1778129450000,-1391.22,0.00031,7]
[421772269,1778129450000,-87829.0,0.0003013,2]
[421772268,1778129450000,-1279.54,0.000301,30]
[421772271,1778129450000,-166.78,0.00030137,2]
[421772270,1778129450000,-327.37,0.00030137,2]
[421772272,1778129450000,-260.0,0.00030137,120]
[421772273,1778129450000,-272.31,0.00030137,120]
[421772275,1778129450000,-15910.45960501,0.00030137,120]
[421772274,1778129450000,-1139.03134317,0.00030137,5]
[421772276,1778129450000,-633.21516509,0.00030137,120]
[421772279,1778129450000,-912.0,0.00030137,120]
[421772277,1778129450000,-401.97405522,0.00030137,120]
[421772282,1778129450000,-150.0,0.00030183,2]
[421772280,1778129450000,-205.0,0.00030181,2]
[421772278,1778129450000,-443.76885576,0.00030137,2]
[421772281,1778129450000,-150.0,0.00030183,2]
[421772283,1778129450000,-150.0,0.00030183,2]
[421772286,1778129450000,-879.2857425,0.00030184,2]
[421772284,1778129450000,-150.0,0.00030183,2]
[421772287,1778129450000,-790.05601529,0.00030195,2]
[421772285,1778129450000,-232.0,0.00030183,2]
[421772289,1778129450000,-152.0,0.00030392,5]
[421772291,1778129450000,-879.2857425,0.00030682,2]
[421772326,1778129450000,-212.862241,0.00032,120]
[421772296,1778129450000,-858.0,0.00031027,30]
[421772294,1778129450000,-160.0,0.00031,120]
[421772292,1778129450000,-790.05601529,0.00030999,2]
[421772288,1778129450000,-789.6,0.00030239,2]
[421772295,1778129450000,-150.0,0.00031011,2]
[421772328,1778129450000,-925.0,0.00032014,2]
[421772308,1778129450000,-156.0,0.00031272,30]
[421772333,1778129450000,-4298.23418777,0.00032125,2]
[421772363,1778129450000,-800.907786,0.00032877,7]
[421772361,1778129450000,-151.0,0.00032877,7]
[421772365,1778129450000,-800.907786,0.00032877,7]
[421772367,1778129450000,-800.907786,0.00032877,7]
[421772368,1778129450000,-800.907786,0.00032877,7]
[421772371,1778129450000,-800.907786,0.00032877,7]
[421772366,1778129450000,-800.907786,0.00032877,7]
[421772370,1778129450000,-800.907786,0.00032877,7]
[421772369,1778129450000,-800.907786,0.00032877,7]
[421772372,1778129450000,-800.907786,0.00032877,7]
[421772376,1778129450000,-800.907786,0.00032877,7]
[421772375,1778129450000,-800.907786,0.00032877,7]
[421772373,1778129450000,-800.907786,0.00032877,7]
[421772364,1778129450000,-800.907786,0.00032877,7]
[421772374,1778129450000,-800.907786,0.00032877,7]
[421772382,1778129450000,-800.907789,0.00032877,7]
[421772378,1778129450000,-800.907786,0.00032877,7]
[421772381,1778129450000,-800.907786,0.00032877,7]
[421772380,1778129450000,-800.907786,0.00032877,7]
[421772379,1778129450000,-800.907786,0.00032877,7]
[421772384,1778129450000,-154.593822,0.00032877,7]
[421772383,1778129450000,-154.593822,0.00032877,7]
[421772386,1778129450000,-154.593822,0.00032877,7]
[421772387,1778129450000,-154.593822,0.00032877,7]
[421772329,1778129450000,-3537.0,0.00032014,2]
[421772388,1778129450000,-154.593822,0.00032877,7]
[421772389,1778129450000,-154.593822,0.00032877,7]
[421772390,1778129450000,-154.593822,0.00032877,7]
[421772377,1778129450000,-800.907786,0.00032877,7]
[421772362,1778129450000,-179.172513,0.00032877,7]
[421772385,1778129450000,-154.593822,0.00032877,7]
[421772357,1778129450000,-151.0,0.00032877,7]
[421772360,1778129450000,-151.0,0.00032877,7]
[421772335,1778129450000,-789.6,0.0003221,5]
[421772331,1778129450000,-6044.0,0.00032014,2]
[421772332,1778129450000,-252.0,0.00032017,30]
[421772334,1778129450000,-310.0,0.00032126,22]
[421772336,1778129450000,-302.0,0.0003226,30]
[421772338,1778129450000,-228.0,0.00032271,30]
[421772339,1778129450000,-257.0,0.00032271,30]
[421772337,1778129450000,-155.0,0.00032271,30]
[421772340,1778129450000,-858.0,0.00032272,30]
[421772341,1778129450000,-215.0,0.00032272,30]
[421772345,1778129450000,-163.15296814,0.00032272,30]
[421772343,1778129450000,-365.0,0.00032272,30]
[421772347,1778129450000,-151.28500223,0.00032305,2]
[421772330,1778129450000,-1222.0,0.00032014,2]
[421772346,1778129450000,-906.84422272,0.000323,2]
[421772342,1778129450000,-154.0,0.00032272,30]
[421772355,1778129450000,-151.0,0.00032877,7]
[421772359,1778129450000,-151.0,0.00032877,7]
[421772358,1778129450000,-151.0,0.00032877,7]
[421772356,1778129450000,-151.0,0.00032877,7]
[421772353,1778129450000,-1391.22,0.000327,7]
[421772354,1778129450000,-327.37,0.00032877,2]
[421772349,1778129450000,-398.0,0.00032307,2]
[421772352,1778129450000,-54092.61,0.000326,7]
[421772350,1778129450000,-150.0,0.00032322,2]
[421772348,1778129450000,-455.433268,0.00032307,2]
[421772344,1778129450000,-158.0,0.00032272,30]
[421772351,1778129450000,-150.0,0.00032562,2]
[421772430,1778129451000,-5000.0,0.00033754,2]
[421772429,1778129451000,-5000.0,0.00033754,2]
[421772428,1778129451000,-7016.45368342,0.00033754,2]
[421772426,1778129451000,-158.0,0.00033272,30]
[421772423,1778129451000,-215.0,0.00033272,30]
[421772424,1778129451000,-154.0,0.00033272,30]
[421772425,1778129451000,-365.0,0.00033272,30]
[421772421,1778129451000,-257.0,0.00033271,30]
[421772431,1778129451000,-5000.0,0.00033754,2]
[421772420,1778129451000,-228.0,0.00033271,30]
[421772427,1778129451000,-54092.61,0.000336,7]
[421772422,1778129451000,-858.0,0.00033272,30]
[421772436,1778129451000,-451.74648581,0.000339,120]
[421772433,1778129451000,-2000.0,0.00033778,120]
[421772437,1778129451000,-1537.50974704,0.000339,120]
[421772435,1778129451000,-284.0,0.00033896,2]
[421772434,1778129451000,-271.0,0.00033896,2]
[421772439,1778129451000,-1798.75430746,0.000339,120]
[421772438,1778129451000,-997.89473113,0.000339,120]
[421772440,1778129451000,-189.49890456,0.000339,120]
[421772442,1778129451000,-206.28608889,0.000339,120]
[421772441,1778129451000,-212.862241,0.000339,120]
[421772443,1778129451000,-50000.0,0.00034,31]
[421772419,1778129451000,-155.0,0.00033271,30]
[421772444,1778129451000,-310.0,0.00034122,34]
[421772432,1778129451000,-5000.0,0.00033754,2]
[421772416,1778129451000,-167.0,0.00033226,30]
[421772402,1778129451000,-154.593825,0.00032877,7]
[421772417,1778129451000,-302.0,0.0003326,30]
[421772446,1778129451000,-150.0,0.0003419,2]
[421772395,1778129451000,-154.593822,0.00032877,7]
[421772393,1778129451000,-154.593822,0.00032877,7]
[421772396,1778129451000,-154.593822,0.00032877,7]
[421772392,1778129451000,-154.593822,0.00032877,7]
[421772391,1778129451000,-154.593822,0.00032877,7]
[421772394,1778129451000,-154.593822,0.00032877,7]
[421772397,1778129451000,-154.593822,0.00032877,7]
[421772399,1778129451000,-154.593822,0.00032877,7]
[421772401,1778129451000,-154.593822,0.00032877,7]
[421772398,1778129451000,-154.593822,0.00032877,7]
[421772400,1778129451000,-154.593822,0.00032877,7]
[421772403,1778129451000,-3000.0,0.00032877,120]
[421772409,1778129451000,-1798.75430746,0.00033,120]
[421772405,1778129451000,-183.87269486,0.0003299,2]
[421772407,1778129451000,-1537.50974704,0.00033,120]
[421772410,1778129451000,-189.49890456,0.00033,120]
[421772404,1778129451000,-4000.0,0.00032877,60]
[421772406,1778129451000,-451.74648581,0.00033,120]
[421772408,1778129451000,-997.89473113,0.00033,120]
[421772411,1778129451000,-212.862241,0.00033,120]
[421772413,1778129451000,-570.407597,0.00033,14]
[421772412,1778129451000,-206.28608889,0.00033,120]
[421772414,1778129451000,-42998.50209559,0.00033,2]
[421772415,1778129451000,-2472.69905523,0.00033,3]
[421772418,1778129451000,-152.0,0.00033265,7]
[421772447,1778129451000,-1391.22,0.000342,30]
[421772485,1778129451000,-594.35303198,0.00034877,5]
[421772449,1778129451000,-302.0,0.0003426,30]
[421772477,1778129451000,-213.79,0.00034469,2]
[421772480,1778129451000,-433.0,0.0003449,10]
[421772482,1778129451000,-152.0,0.00034702,8]
[421772481,1778129451000,-54092.61,0.000346,7]
[421772488,1778129451000,-13332.85,0.0003491,30]
[421772483,1778129451000,-1500.0,0.00034795,2]
[421772487,1778129451000,-152.98980593,0.000349,120]
[421772484,1778129451000,-157.6,0.00034797,120]
[421772486,1778129451000,-894.54799109,0.0003488,120]
[421772490,1778129451000,-441.33192294,0.00034918,2]
[421772489,1778129451000,-441.33,0.00034918,2]
[421772492,1778129451000,-1537.50974704,0.00035,120]
[421772493,1778129451000,-997.89473113,0.00035,120]
[421772495,1778129451000,-150.0,0.00035,2]
[421772494,1778129451000,-1798.75430746,0.00035,120]
[421772499,1778129451000,-19590.65182165,0.00035,120]
[421772497,1778129451000,-922.66805083,0.00035,2]
[421772500,1778129451000,-160.0,0.00035,120]
[421772498,1778129451000,-1945.95854788,0.00035,2]
[421772496,1778129451000,-180.374,0.00035,2]
[421772503,1778129451000,-326.45536891,0.00035,7]
[421772501,1778129451000,-160.1832266,0.00035,15]
[421772502,1778129451000,-150.0,0.00035,2]
[421772445,1778129451000,-789.6,0.00034182,7]